[Event "Titled Tuesday Blitz December 20 Late 2022"]
[White "ArchibaldCerveza29"]
[Black "Bogaudinov, Rushan"]
[BlackFideId "4129288"]
[WhiteElo "2438"]
[BlackElo "2028"]
[Result "1-0"]
[Round "07"]
[TimeControl "180+1"]
[Date "2022.12.21"]
[WhiteClock "0:00:05"]
[BlackClock "0:00:01"]

1. d4 {[%clk 0:03:00]}  d5 {[%clk 0:02:56]} 2. c4 {[%clk 0:03:01]}  e6 {[%clk 0:02:56]} 3. Nc3 {[%clk 0:03:01]}  a6 {[%clk 0:02:56]} 4. cxd5 {[%clk 0:03:01]}  exd5 {[%clk 0:02:56]} 5. Bf4 {[%clk 0:02:59]}  Nf6 {[%clk 0:02:54]} 6. Qc2 {[%clk 0:02:52]}  Bd6 {[%clk 0:02:45]} 7. Bxd6 {[%clk 0:02:48]}  Qxd6 {[%clk 0:02:45]} 8. Nf3 {[%clk 0:02:47]}  O-O {[%clk 0:02:43]} 9. e3 {[%clk 0:02:48]}  c6 {[%clk 0:02:34]} 10. Bd3 {[%clk 0:02:47]}  Nbd7 {[%clk 0:02:32]} 11. O-O {[%clk 0:02:47]}  Re8 {[%clk 0:02:30]} 12. Rfe1 {[%clk 0:02:46]}  Nf8 {[%clk 0:02:18]} 13. Ne5 {[%clk 0:02:46]}  N6d7 {[%clk 0:02:16]} 14. f4 {[%clk 0:02:30]}  f6 {[%clk 0:02:09]} 15. Nf3 {[%clk 0:02:30]}  Nb6 {[%clk 0:01:52]} 16. b3 {[%clk 0:02:25]}  Bg4 {[%clk 0:01:47]} 17. Qf2 {[%clk 0:02:20]}  Bxf3 {[%clk 0:01:43]} 18. Qxf3 {[%clk 0:02:21]}  Re7 {[%clk 0:01:38]} 19. Rad1 {[%clk 0:02:18]}  Qb4 {[%clk 0:01:30]} 20. Rc1 {[%clk 0:02:09]}  a5 {[%clk 0:01:29]} 21. Bc2 {[%clk 0:01:42]}  Kh8 {[%clk 0:01:23]} 22. Na4 {[%clk 0:01:32]}  Nxa4 {[%clk 0:01:21]} 23. bxa4 {[%clk 0:01:33]}  Rae8 {[%clk 0:01:13]} 24. Bb3 {[%clk 0:01:04]}  f5 {[%clk 0:01:07]} 25. Kf2 {[%clk 0:00:58]}  Nd7 {[%clk 0:01:06]} 26. g4 {[%clk 0:00:55]}  fxg4 {[%clk 0:01:05]} 27. Qxg4 {[%clk 0:00:56]}  Nf6 {[%clk 0:01:04]} 28. Qf3 {[%clk 0:00:52]}  Qd2+ {[%clk 0:00:59]} 29. Qe2 {[%clk 0:00:46]}  Ng4+ {[%clk 0:00:58]} 30. Kg1 {[%clk 0:00:36]}  Qxe2 {[%clk 0:00:51]} 31. Rxe2 {[%clk 0:00:37]}  Rxe3 {[%clk 0:00:48]} 32. Rxe3 {[%clk 0:00:37]}  Rxe3 {[%clk 0:00:47]} 33. Bxd5 {[%clk 0:00:38]}  h5 {[%clk 0:00:40]} 34. Bf7 {[%clk 0:00:36]}  Nf6 {[%clk 0:00:35]} 35. Rb1 {[%clk 0:00:32]}  Re7 {[%clk 0:00:31]} 36. Bg6 {[%clk 0:00:31]}  Nd5 {[%clk 0:00:29]} 37. f5 {[%clk 0:00:28]}  h4 {[%clk 0:00:23]} 38. Rc1 {[%clk 0:00:26]}  Nf4 {[%clk 0:00:20]} 39. Rc5 {[%clk 0:00:24]}  Nxg6 {[%clk 0:00:19]} 40. fxg6 {[%clk 0:00:25]}  Re6 {[%clk 0:00:19]} 41. Rxa5 {[%clk 0:00:15]}  Rxg6+ {[%clk 0:00:19]} 42. Kf2 {[%clk 0:00:16]}  h3 {[%clk 0:00:19]} 43. Rh5+ {[%clk 0:00:16]}  Kg8 {[%clk 0:00:19]} 44. Rxh3 {[%clk 0:00:16]}  Rg4 {[%clk 0:00:19]} 45. Ke3 {[%clk 0:00:15]}  Kf7 {[%clk 0:00:18]} 46. Rh8 {[%clk 0:00:15]}  Rg2 {[%clk 0:00:17]} 47. Rb8 {[%clk 0:00:14]}  Rxa2 {[%clk 0:00:15]} 48. Rxb7+ {[%clk 0:00:13]}  Kf6 {[%clk 0:00:15]} 49. Rb6 {[%clk 0:00:13]}  Rxa4 {[%clk 0:00:12]} 50. Rxc6+ {[%clk 0:00:13]}  Kf5 {[%clk 0:00:13]} 51. Rc7 {[%clk 0:00:13]}  Ra3+ {[%clk 0:00:12]} 52. Kf2 {[%clk 0:00:13]}  g5 {[%clk 0:00:13]} 53. Re7 {[%clk 0:00:09]}  Kf4 {[%clk 0:00:12]} 54. d5 {[%clk 0:00:09]}  Ra2+ {[%clk 0:00:12]} 55. Kg1 {[%clk 0:00:09]}  Kf3 {[%clk 0:00:10]} 56. Rf7+ {[%clk 0:00:09]}  Kg4 {[%clk 0:00:07]} 57. d6 {[%clk 0:00:10]}  Ra1+ {[%clk 0:00:07]} 58. Kg2 {[%clk 0:00:09]}  Ra2+ {[%clk 0:00:08]} 59. Rf2 {[%clk 0:00:09]}  Ra8 {[%clk 0:00:04]} 60. Rd2 {[%clk 0:00:09]}  Rd8 {[%clk 0:00:03]} 61. d7 {[%clk 0:00:10]}  Kf4 {[%clk 0:00:04]} 62. Rd5 {[%clk 0:00:07]}  g4 {[%clk 0:00:03]} 63. Rd4+ {[%clk 0:00:06]}  Ke3 {[%clk 0:00:01]} 64. Rd6 {[%clk 0:00:05]}  Kf4 {[%clk 0:00:01]} 65. Rd5 {[%clk 0:00:05]}  Ke4 {[%clk 0:00:01]} 66. Rd1 {[%clk 0:00:06]}  Kf4 {[%clk 0:00:01]} 67. Kf2 {[%clk 0:00:05]} 1-0


[Site "https://www.chess.com"]

[Event "Titled Tuesday Blitz December 20 Late 2022"]
[White "Begmuratov, Khumoyun"]
[Black "Tang, Andrew"]
[WhiteFideId "14210207"]
[BlackFideId "2059630"]
[WhiteElo "2267"]
[BlackElo "2582"]
[Result "0-1"]
[Round "07"]
[TimeControl "180+1"]
[Date "2022.12.20"]
[WhiteClock "0:00:03"]
[BlackClock "0:00:05"]

1. e4 {[%clk 0:03:00]}  e5 {[%clk 0:02:56]} 2. Nf3 {[%clk 0:03:00]}  Nc6 {[%clk 0:02:53]} 3. Nc3 {[%clk 0:03:00]}  Nf6 {[%clk 0:02:52]} 4. d4 {[%clk 0:03:00]}  exd4 {[%clk 0:02:51]} 5. Nxd4 {[%clk 0:03:01]}  Bb4 {[%clk 0:02:50]} 6. Nxc6 {[%clk 0:03:01]}  bxc6 {[%clk 0:02:50]} 7. Bd3 {[%clk 0:03:01]}  O-O {[%clk 0:02:50]} 8. O-O {[%clk 0:03:01]}  d5 {[%clk 0:02:46]} 9. exd5 {[%clk 0:03:01]}  cxd5 {[%clk 0:02:47]} 10. h3 {[%clk 0:03:01]}  c6 {[%clk 0:02:44]} 11. Qf3 {[%clk 0:03:01]}  h6 {[%clk 0:02:38]} 12. Ne2 {[%clk 0:02:55]}  Rb8 {[%clk 0:02:30]} 13. Bf4 {[%clk 0:02:53]}  Bd6 {[%clk 0:02:29]} 14. b3 {[%clk 0:02:53]}  Rb7 {[%clk 0:02:26]} 15. Rfe1 {[%clk 0:02:48]}  c5 {[%clk 0:01:45]} 16. Ng3 {[%clk 0:02:36]}  Re7 {[%clk 0:01:39]} 17. Bf5 {[%clk 0:02:25]}  Bb7 {[%clk 0:01:24]} 18. Rxe7 {[%clk 0:01:53]}  Qxe7 {[%clk 0:01:17]} 19. Bd3 {[%clk 0:01:52]}  Bxf4 {[%clk 0:00:47]} 20. Qxf4 {[%clk 0:01:52]}  Re8 {[%clk 0:00:47]} 21. Rd1 {[%clk 0:01:41]}  Qe5 {[%clk 0:00:35]} 22. Qxe5 {[%clk 0:01:20]}  Rxe5 {[%clk 0:00:35]} 23. f4 {[%clk 0:01:14]}  Re6 {[%clk 0:00:34]} 24. Kf2 {[%clk 0:01:08]}  Kf8 {[%clk 0:00:34]} 25. c3 {[%clk 0:01:07]}  a5 {[%clk 0:00:29]} 26. Nf1 {[%clk 0:01:03]}  Rb6 {[%clk 0:00:18]} 27. Ne3 {[%clk 0:00:56]}  a4 {[%clk 0:00:18]} 28. Bc2 {[%clk 0:00:53]}  axb3 {[%clk 0:00:17]} 29. axb3 {[%clk 0:00:52]}  g6 {[%clk 0:00:17]} 30. g4 {[%clk 0:00:51]}  g5 {[%clk 0:00:11]} 31. fxg5 {[%clk 0:00:42]}  hxg5 {[%clk 0:00:12]} 32. Ra1 {[%clk 0:00:40]}  Ke7 {[%clk 0:00:11]} 33. Nf5+ {[%clk 0:00:40]}  Kd7 {[%clk 0:00:11]} 34. Ra5 {[%clk 0:00:37]}  Kc6 {[%clk 0:00:08]} 35. Ne7+ {[%clk 0:00:26]}  Kd6 {[%clk 0:00:08]} 36. Nf5+ {[%clk 0:00:27]}  Kc6 {[%clk 0:00:09]} 37. Ke3 {[%clk 0:00:19]}  Nd7 {[%clk 0:00:09]} 38. Bd1 {[%clk 0:00:14]}  Kc7 {[%clk 0:00:08]} 39. Ra2 {[%clk 0:00:12]}  Re6+ {[%clk 0:00:08]} 40. Kf2 {[%clk 0:00:11]}  Nf6 {[%clk 0:00:08]} 41. Bf3 {[%clk 0:00:10]}  Rb6 {[%clk 0:00:07]} 42. Bd1 {[%clk 0:00:09]}  Ne4+ {[%clk 0:00:06]} 43. Ke1 {[%clk 0:00:10]}  Nxc3 {[%clk 0:00:07]} 44. Rc2 {[%clk 0:00:10]}  Rxb3 {[%clk 0:00:05]} 45. Rc1 {[%clk 0:00:05]}  Ra3 {[%clk 0:00:05]} 46. Bf3 {[%clk 0:00:06]}  d4 {[%clk 0:00:04]} 47. Bxb7 {[%clk 0:00:04]}  Kxb7 {[%clk 0:00:05]} 48. Nd6+ {[%clk 0:00:05]}  Kc6 {[%clk 0:00:05]} 49. Nxf7 {[%clk 0:00:06]}  Ra2 {[%clk 0:00:06]} 50. Nxg5 {[%clk 0:00:06]}  c4 {[%clk 0:00:05]} 51. h4 {[%clk 0:00:04]}  Rh2 {[%clk 0:00:04]} 52. h5 {[%clk 0:00:05]}  Rh1+ {[%clk 0:00:03]} 53. Kd2 {[%clk 0:00:05]}  Rh2+ {[%clk 0:00:03]} 54. Ke1 {[%clk 0:00:05]}  Kd5 {[%clk 0:00:04]} 55. Nf3 {[%clk 0:00:04]}  Rh1+ {[%clk 0:00:04]} 56. Kd2 {[%clk 0:00:04]}  Ne4+ {[%clk 0:00:04]} 57. Kc2 {[%clk 0:00:04]}  Rh3 {[%clk 0:00:04]} 58. Rf1 {[%clk 0:00:03]}  d3+ {[%clk 0:00:04]} 59. Kd1 {[%clk 0:00:03]}  c3 {[%clk 0:00:04]} 60. g5 {[%clk 0:00:03]}  c2+ {[%clk 0:00:04]} 61. Kc1 {[%clk 0:00:03]}  Kc4 {[%clk 0:00:05]} 62. g6 {[%clk 0:00:02]}  Kc3 {[%clk 0:00:05]} 63. g7 {[%clk 0:00:02]}  Rg3 {[%clk 0:00:04]} 64. h6 {[%clk 0:00:03]}  d2+ {[%clk 0:00:04]} 65. Nxd2 {[%clk 0:00:03]}  Nxd2 {[%clk 0:00:05]} 0-1


[Site "https://www.chess.com"]

[Event "Titled Tuesday Blitz December 20 Late 2022"]
[White "Blanco Acevedo, Cristobal Jose"]
[Black "aidenzhouu"]
[WhiteFideId "3900525"]
[WhiteElo "2273"]
[BlackElo "2402"]
[Result "1-0"]
[Round "07"]
[TimeControl "180+1"]
[Date "2022.12.21"]
[WhiteClock "0:00:14"]
[BlackClock "0:00:07"]

1. e4 {[%clk 0:02:51]}  c6 {[%clk 0:02:59]} 2. Nc3 {[%clk 0:02:50]}  d5 {[%clk 0:03:00]} 3. Nf3 {[%clk 0:02:50]}  dxe4 {[%clk 0:03:00]} 4. Nxe4 {[%clk 0:02:50]}  Nf6 {[%clk 0:03:01]} 5. Nxf6+ {[%clk 0:02:50]}  exf6 {[%clk 0:03:01]} 6. d4 {[%clk 0:02:51]}  Bd6 {[%clk 0:03:01]} 7. Bd3 {[%clk 0:02:50]}  O-O {[%clk 0:03:00]} 8. Be3 {[%clk 0:02:50]}  Nd7 {[%clk 0:02:57]} 9. Qd2 {[%clk 0:02:49]}  Re8 {[%clk 0:02:56]} 10. O-O-O {[%clk 0:02:48]}  Nf8 {[%clk 0:02:48]} 11. Rhe1 {[%clk 0:02:46]}  Be6 {[%clk 0:02:40]} 12. Kb1 {[%clk 0:02:39]}  b5 {[%clk 0:02:39]} 13. Bf4 {[%clk 0:02:37]}  Ng6 {[%clk 0:02:34]} 14. Bxd6 {[%clk 0:02:31]}  Qxd6 {[%clk 0:02:35]} 15. Bxg6 {[%clk 0:02:31]}  hxg6 {[%clk 0:02:33]} 16. Qc3 {[%clk 0:02:21]}  a5 {[%clk 0:02:22]} 17. Nd2 {[%clk 0:02:09]}  Qd5 {[%clk 0:02:15]} 18. b3 {[%clk 0:01:53]}  Qxg2 {[%clk 0:01:42]} 19. f3 {[%clk 0:01:47]}  Bd5 {[%clk 0:01:38]} 20. Rg1 {[%clk 0:01:42]}  Qh3 {[%clk 0:01:18]} 21. Kb2 {[%clk 0:01:36]}  a4 {[%clk 0:01:14]} 22. Qd3 {[%clk 0:01:06]}  Qf5 {[%clk 0:01:04]} 23. Qxf5 {[%clk 0:01:04]}  gxf5 {[%clk 0:01:05]} 24. Rde1 {[%clk 0:01:01]}  Kf8 {[%clk 0:00:55]} 25. c4 {[%clk 0:00:59]}  Rxe1 {[%clk 0:00:38]} 26. Rxe1 {[%clk 0:00:58]}  Be6 {[%clk 0:00:38]} 27. f4 {[%clk 0:00:57]}  axb3 {[%clk 0:00:36]} 28. axb3 {[%clk 0:00:57]}  Rd8 {[%clk 0:00:27]} 29. Kc3 {[%clk 0:00:56]}  b4+ {[%clk 0:00:26]} 30. Kd3 {[%clk 0:00:55]}  g5 {[%clk 0:00:25]} 31. Rf1 {[%clk 0:00:45]}  Ke7 {[%clk 0:00:24]} 32. Ke3 {[%clk 0:00:41]}  Rh8 {[%clk 0:00:24]} 33. Rf2 {[%clk 0:00:24]}  Rh3+ {[%clk 0:00:22]} 34. Ke2 {[%clk 0:00:25]}  gxf4 {[%clk 0:00:17]} 35. Nf3 {[%clk 0:00:24]}  Rh8 {[%clk 0:00:14]} 36. Kd3 {[%clk 0:00:22]}  Ra8 {[%clk 0:00:14]} 37. Re2 {[%clk 0:00:19]}  Ra3 {[%clk 0:00:14]} 38. Rb2 {[%clk 0:00:19]}  Kd6 {[%clk 0:00:14]} 39. Ne1 {[%clk 0:00:18]}  Ra1 {[%clk 0:00:14]} 40. Nc2 {[%clk 0:00:17]}  Rh1 {[%clk 0:00:14]} 41. Nxb4 {[%clk 0:00:17]}  f3 {[%clk 0:00:13]} 42. Ke3 {[%clk 0:00:17]}  c5 {[%clk 0:00:12]} 43. dxc5+ {[%clk 0:00:17]}  Kxc5 {[%clk 0:00:13]} 44. Nd3+ {[%clk 0:00:17]}  Kd6 {[%clk 0:00:13]} 45. Kxf3 {[%clk 0:00:17]}  Rf1+ {[%clk 0:00:13]} 46. Ke3 {[%clk 0:00:17]}  Ra1 {[%clk 0:00:11]} 47. Nf4 {[%clk 0:00:17]}  Kc5 {[%clk 0:00:11]} 48. Nd3+ {[%clk 0:00:16]}  Kb6 {[%clk 0:00:11]} 49. c5+ {[%clk 0:00:16]}  Kb5 {[%clk 0:00:11]} 50. b4 {[%clk 0:00:16]}  Bc4 {[%clk 0:00:11]} 51. Nf4 {[%clk 0:00:16]}  Ra4 {[%clk 0:00:11]} 52. Kd4 {[%clk 0:00:14]}  Ra8 {[%clk 0:00:09]} 53. Nh5 {[%clk 0:00:14]}  Rd8+ {[%clk 0:00:09]} 54. Ke3 {[%clk 0:00:14]}  Rd3+ {[%clk 0:00:10]} 55. Kf4 {[%clk 0:00:15]}  Rd4+ {[%clk 0:00:08]} 56. Kxf5 {[%clk 0:00:15]}  Be6+ {[%clk 0:00:09]} 57. Kxf6 {[%clk 0:00:15]}  Rh4 {[%clk 0:00:09]} 58. Ng7 {[%clk 0:00:15]}  Rh6+ {[%clk 0:00:09]} 59. Ke7 {[%clk 0:00:14]}  Bc4 {[%clk 0:00:08]} 60. Nf5 {[%clk 0:00:13]}  Re6+ {[%clk 0:00:08]} 61. Kd8 {[%clk 0:00:13]}  Re5 {[%clk 0:00:08]} 62. Nd6+ {[%clk 0:00:13]}  Kc6 {[%clk 0:00:08]} 63. Nxc4 {[%clk 0:00:14]}  f5 {[%clk 0:00:07]} 64. Nxe5+ {[%clk 0:00:14]} 1-0


[Site "https://www.chess.com"]

[Event "Titled Tuesday Blitz December 20 Late 2022"]
[White "Bortnyk, Mykola"]
[Black "Bluebaum, Matthias"]
[WhiteFideId "14120836"]
[BlackFideId "24651516"]
[WhiteElo "2582"]
[BlackElo "2634"]
[Result "1/2-1/2"]
[Round "07"]
[TimeControl "180+1"]
[Date "2022.12.20"]
[WhiteClock "0:00:06"]
[BlackClock "0:00:13"]

1. e4 {[%clk 0:03:00]}  e6 {[%clk 0:03:00]} 2. d4 {[%clk 0:03:01]}  d5 {[%clk 0:03:00]} 3. Nc3 {[%clk 0:03:02]}  Nf6 {[%clk 0:03:01]} 4. e5 {[%clk 0:03:02]}  Nfd7 {[%clk 0:03:01]} 5. Nf3 {[%clk 0:03:03]}  c5 {[%clk 0:03:02]} 6. dxc5 {[%clk 0:03:04]}  Nc6 {[%clk 0:03:03]} 7. Bf4 {[%clk 0:03:04]}  Bxc5 {[%clk 0:03:03]} 8. Bd3 {[%clk 0:03:04]}  f6 {[%clk 0:03:04]} 9. exf6 {[%clk 0:03:05]}  Nxf6 {[%clk 0:03:05]} 10. Qd2 {[%clk 0:03:01]}  O-O {[%clk 0:03:03]} 11. O-O-O {[%clk 0:02:58]}  Qa5 {[%clk 0:02:53]} 12. Kb1 {[%clk 0:02:43]}  Bb4 {[%clk 0:02:51]} 13. a3 {[%clk 0:02:18]}  Bxc3 {[%clk 0:02:51]} 14. Qxc3 {[%clk 0:02:19]}  Qxc3 {[%clk 0:02:50]} 15. bxc3 {[%clk 0:02:20]}  Ne4 {[%clk 0:02:42]} 16. Bxe4 {[%clk 0:02:04]}  dxe4 {[%clk 0:02:38]} 17. Bd6 {[%clk 0:02:04]}  exf3 {[%clk 0:02:37]} 18. Bxf8 {[%clk 0:02:05]}  fxg2 {[%clk 0:02:29]} 19. Rhg1 {[%clk 0:02:04]}  Kxf8 {[%clk 0:02:30]} 20. Rxg2 {[%clk 0:02:05]}  e5 {[%clk 0:02:30]} 21. f4 {[%clk 0:02:02]}  exf4 {[%clk 0:02:22]} 22. Rf1 {[%clk 0:02:02]}  Bf5 {[%clk 0:02:20]} 23. Rxf4 {[%clk 0:02:01]}  g6 {[%clk 0:02:21]} 24. h4 {[%clk 0:02:01]}  Ne7 {[%clk 0:02:01]} 25. Kb2 {[%clk 0:01:56]}  h5 {[%clk 0:01:52]} 26. Rxg6 {[%clk 0:01:49]}  Nxg6 {[%clk 0:01:53]} 27. Rxf5+ {[%clk 0:01:50]}  Ke7 {[%clk 0:01:18]} 28. Rxh5 {[%clk 0:01:51]}  Rh8 {[%clk 0:01:18]} 29. Rg5 {[%clk 0:01:47]}  Kf6 {[%clk 0:01:13]} 30. Rb5 {[%clk 0:01:45]}  Rh7 {[%clk 0:01:10]} 31. Ra5 {[%clk 0:01:29]}  b6 {[%clk 0:01:03]} 32. Rd5 {[%clk 0:01:22]}  Nxh4 {[%clk 0:00:59]} 33. a4 {[%clk 0:01:20]}  Nf5 {[%clk 0:00:54]} 34. a5 {[%clk 0:01:00]}  Ke6 {[%clk 0:00:54]} 35. Rd1 {[%clk 0:00:50]}  bxa5 {[%clk 0:00:54]} 36. c4 {[%clk 0:00:46]}  Rc7 {[%clk 0:00:43]} 37. Re1+ {[%clk 0:00:40]}  Kd7 {[%clk 0:00:43]} 38. Rh1 {[%clk 0:00:31]}  Nd6 {[%clk 0:00:43]} 39. c5 {[%clk 0:00:31]}  Rxc5 {[%clk 0:00:42]} 40. Rh7+ {[%clk 0:00:30]}  Kc6 {[%clk 0:00:43]} 41. Rxa7 {[%clk 0:00:31]}  Kb6 {[%clk 0:00:44]} 42. Rh7 {[%clk 0:00:30]}  Rb5+ {[%clk 0:00:43]} 43. Kc3 {[%clk 0:00:26]}  a4 {[%clk 0:00:40]} 44. Rh6 {[%clk 0:00:24]}  Kc6 {[%clk 0:00:36]} 45. Rh4 {[%clk 0:00:24]}  Ra5 {[%clk 0:00:30]} 46. Kb4 {[%clk 0:00:24]}  Ra8 {[%clk 0:00:25]} 47. Rh3 {[%clk 0:00:24]}  a3 {[%clk 0:00:08]} 48. Rxa3 {[%clk 0:00:22]}  Rb8+ {[%clk 0:00:09]} 49. Ka4 {[%clk 0:00:21]}  Kc5 {[%clk 0:00:03]} 50. Rh3 {[%clk 0:00:18]}  Rb1 {[%clk 0:00:02]} 51. Rh5+ {[%clk 0:00:16]}  Kc6 {[%clk 0:00:02]} 52. c4 {[%clk 0:00:14]}  Ne4 {[%clk 0:00:02]} 53. c5 {[%clk 0:00:09]}  Nxc5+ {[%clk 0:00:02]} 54. Ka3 {[%clk 0:00:10]}  Rb5 {[%clk 0:00:02]} 55. Rh6+ {[%clk 0:00:10]}  Kd5 {[%clk 0:00:02]} 56. Rh5+ {[%clk 0:00:10]}  Kc6 {[%clk 0:00:03]} 57. Rh6+ {[%clk 0:00:11]}  Kc7 {[%clk 0:00:03]} 58. Rh7+ {[%clk 0:00:11]}  Nd7 {[%clk 0:00:04]} 59. Ka4 {[%clk 0:00:11]}  Rb8 {[%clk 0:00:04]} 60. Ka3 {[%clk 0:00:11]}  Kc6 {[%clk 0:00:05]} 61. Rh5 {[%clk 0:00:11]}  Nc5 {[%clk 0:00:05]} 62. Rh6+ {[%clk 0:00:11]}  Kd5 {[%clk 0:00:05]} 63. Rh5+ {[%clk 0:00:12]}  Kc4 {[%clk 0:00:06]} 64. Rh4+ {[%clk 0:00:13]}  Kc3 {[%clk 0:00:07]} 65. Rh3+ {[%clk 0:00:10]}  Nd3 {[%clk 0:00:07]} 66. Ka4 {[%clk 0:00:10]}  Kc4 {[%clk 0:00:06]} 67. Rh4+ {[%clk 0:00:10]}  Kc5 {[%clk 0:00:06]} 68. Rh5+ {[%clk 0:00:11]}  Kc4 {[%clk 0:00:06]} 69. Rh4+ {[%clk 0:00:11]}  Kc3 {[%clk 0:00:07]} 70. Rh3 {[%clk 0:00:12]}  Rb1 {[%clk 0:00:07]} 71. Rg3 {[%clk 0:00:11]}  Rf1 {[%clk 0:00:05]} 72. Rh3 {[%clk 0:00:11]}  Rf5 {[%clk 0:00:04]} 73. Rg3 {[%clk 0:00:09]}  Rh5 {[%clk 0:00:04]} 74. Re3 {[%clk 0:00:05]}  Kc4 {[%clk 0:00:05]} 75. Re4+ {[%clk 0:00:05]}  Kc3 {[%clk 0:00:05]} 76. Re3 {[%clk 0:00:05]}  Kd4 {[%clk 0:00:06]} 77. Rg3 {[%clk 0:00:05]}  Kc4 {[%clk 0:00:05]} 78. Rg4+ {[%clk 0:00:04]}  Kc3 {[%clk 0:00:06]} 79. Rg3 {[%clk 0:00:05]}  Rf5 {[%clk 0:00:06]} 80. Rh3 {[%clk 0:00:05]}  Rg5 {[%clk 0:00:07]} 81. Rf3 {[%clk 0:00:05]}  Kc4 {[%clk 0:00:07]} 82. Rh3 {[%clk 0:00:04]}  Rf5 {[%clk 0:00:06]} 83. Rh4+ {[%clk 0:00:04]}  Nf4 {[%clk 0:00:06]} 84. Ka3 {[%clk 0:00:03]}  Kc3 {[%clk 0:00:07]} 85. Ka4 {[%clk 0:00:03]}  Rf8 {[%clk 0:00:07]} 86. Kb5 {[%clk 0:00:03]}  Ne6 {[%clk 0:00:06]} 87. Rh3+ {[%clk 0:00:03]}  Kd4 {[%clk 0:00:07]} 88. Rh4+ {[%clk 0:00:03]}  Kd5 {[%clk 0:00:07]} 89. Rh5+ {[%clk 0:00:04]}  Kd6 {[%clk 0:00:08]} 90. Rh6 {[%clk 0:00:05]}  Rb8+ {[%clk 0:00:08]} 91. Kc4 {[%clk 0:00:05]}  Ra8 {[%clk 0:00:09]} 92. Kb4 {[%clk 0:00:06]}  Kd5 {[%clk 0:00:09]} 93. Rh5+ {[%clk 0:00:06]}  Ke4 {[%clk 0:00:09]} 94. Rh4+ {[%clk 0:00:07]}  Nf4 {[%clk 0:00:10]} 95. Kb5 {[%clk 0:00:07]}  Rb8+ {[%clk 0:00:10]} 96. Kc4 {[%clk 0:00:07]}  Rc8+ {[%clk 0:00:11]} 97. Kb4 {[%clk 0:00:08]}  Ke5 {[%clk 0:00:11]} 98. Kb5 {[%clk 0:00:08]}  Rb8+ {[%clk 0:00:11]} 99. Kc4 {[%clk 0:00:07]}  Rf8 {[%clk 0:00:12]} 100. Kb5 {[%clk 0:00:07]}  Kd5 {[%clk 0:00:12]} 101. Kb4 {[%clk 0:00:06]}  Kd4 {[%clk 0:00:13]} 102. Kb5 {[%clk 0:00:06]}  Rb8+ {[%clk 0:00:12]} 103. Kc6 {[%clk 0:00:06]}  Ke5 {[%clk 0:00:13]} 1/2-1/2


[Site "https://www.chess.com"]

[Event "Titled Tuesday Blitz December 20 Late 2022"]
[White "Broca Jimenez, Fernando"]
[Black "Forgacs, Attila Jr."]
[WhiteFideId "5104742"]
[BlackFideId "773654"]
[WhiteElo "2062"]
[BlackElo "2168"]
[Result "0-1"]
[Round "07"]
[TimeControl "180+1"]
[Date "2022.12.21"]
[WhiteClock "0:00:10"]
[BlackClock "0:00:34"]

1. e4 {[%clk 0:02:59]}  e5 {[%clk 0:02:59]} 2. Nf3 {[%clk 0:02:58]}  Nc6 {[%clk 0:03:00]} 3. Bb5 {[%clk 0:02:53]}  a6 {[%clk 0:03:00]} 4. Ba4 {[%clk 0:02:52]}  Nf6 {[%clk 0:03:00]} 5. O-O {[%clk 0:02:51]}  Be7 {[%clk 0:03:00]} 6. Re1 {[%clk 0:02:51]}  b5 {[%clk 0:03:00]} 7. Bb3 {[%clk 0:02:51]}  O-O {[%clk 0:03:01]} 8. h3 {[%clk 0:02:51]}  Bb7 {[%clk 0:03:00]} 9. d3 {[%clk 0:02:43]}  d6 {[%clk 0:03:00]} 10. c3 {[%clk 0:02:42]}  Qd7 {[%clk 0:02:53]} 11. Nbd2 {[%clk 0:02:40]}  Rfe8 {[%clk 0:02:53]} 12. Nf1 {[%clk 0:02:39]}  h6 {[%clk 0:02:53]} 13. Ne3 {[%clk 0:02:38]}  Bf8 {[%clk 0:02:53]} 14. Nf5 {[%clk 0:02:35]}  Kh7 {[%clk 0:02:52]} 15. Qd2 {[%clk 0:02:27]}  Ng8 {[%clk 0:02:42]} 16. g4 {[%clk 0:02:22]}  g6 {[%clk 0:02:41]} 17. Ne3 {[%clk 0:02:10]}  Bg7 {[%clk 0:02:38]} 18. Kh2 {[%clk 0:02:06]}  Rf8 {[%clk 0:02:23]} 19. Rg1 {[%clk 0:01:54]}  Nce7 {[%clk 0:02:21]} 20. Qe2 {[%clk 0:01:47]}  c5 {[%clk 0:02:17]} 21. a4 {[%clk 0:01:39]}  c4 {[%clk 0:02:05]} 22. Bc2 {[%clk 0:01:38]}  cxd3 {[%clk 0:02:04]} 23. Bxd3 {[%clk 0:01:36]}  f5 {[%clk 0:01:51]} 24. gxf5 {[%clk 0:01:32]}  gxf5 {[%clk 0:01:51]} 25. exf5 {[%clk 0:01:26]}  e4 {[%clk 0:01:51]} 26. f6 {[%clk 0:01:15]}  Nxf6 {[%clk 0:01:35]} 27. Bc2 {[%clk 0:01:06]}  Kh8 {[%clk 0:01:35]} 28. Nd4 {[%clk 0:01:03]}  Nh7 {[%clk 0:01:07]} 29. Ng4 {[%clk 0:00:51]}  h5 {[%clk 0:00:50]} 30. Ne3 {[%clk 0:00:26]}  Be5+ {[%clk 0:00:50]} 31. Kg2 {[%clk 0:00:20]}  Rg8+ {[%clk 0:00:49]} 32. Kf1 {[%clk 0:00:20]}  Rxg1+ {[%clk 0:00:35]} 33. Kxg1 {[%clk 0:00:18]}  Qxh3 {[%clk 0:00:36]} 34. Ng2 {[%clk 0:00:10]}  Qh2+ {[%clk 0:00:34]} 35. Kf1 {[%clk 0:00:10]}  Qh1# {[%clk 0:00:34]} 0-1


[Site "https://www.chess.com"]